bitfinex-derivatives/quotes_BTCF0:USTF0_20250130
["timestamp","ask_amount","ask_price","bid_price","bid_amount"]
[1738232305518,0.216928,105230.0,105220.0,0.19973388]
[1738232310035,0.001,105230.0,105220.0,0.56053388]
[1738232310233,0.02684,105230.0,105220.0,0.62887331]
[1738232310739,0.001,105230.0,105220.0,0.62887331]
[1738232310926,0.59165903,105240.0,105220.0,0.62887331]
[1738232310927,0.0001426,105240.0,105230.0,0.190087]
[1738232311126,0.42913943,105260.0,105230.0,0.54499886]
[1738232311127,0.641177,105260.0,105230.0,0.54499886]
[1738232311341,0.615337,105260.0,105250.0,0.25839043]
[1738232311638,0.68367643,105260.0,105250.0,0.190051]
[1738232311844,0.280377,105260.0,105250.0,0.61919043]
[1738232312143,0.280377,105260.0,105250.0,0.550851]
[1738232312332,0.287377,105260.0,105250.0,0.550851]
[1738232312535,0.32987643,105260.0,105250.0,0.61919043]
[1738232312739,0.34871643,105260.0,105250.0,0.550851]
[1738232312938,0.287377,105260.0,105250.0,0.61919043]
[1738232314038,0.289377,105260.0,105250.0,0.61919043]
[1738232314235,0.35771643,105260.0,105250.0,0.550851]
[1738232314536,0.35171643,105260.0,105250.0,0.190051]
[1738232314742,0.71051643,105260.0,105250.0,0.190051]
[1738232314936,0.98051643,105260.0,105250.0,0.190051]
[1738232315933,0.99451643,105260.0,105250.0,0.190051]
[1738232317136,0.41783943,105260.0,105250.0,0.61919043]
[1738232317339,0.10534,105260.0,105250.0,0.61919043]
[1738232317540,0.0795,105260.0,105250.0,0.61919043]
[1738232319250,0.14783943,105260.0,105250.0,0.61919043]
[1738232319449,0.0795,105260.0,105250.0,0.61919043]
[1738232319647,0.0795,105260.0,105250.0,0.1995246]
[1738232319648,0.69867243,105260.0,105250.0,0.1995246]
[1738232319951,0.33787243,105260.0,105250.0,0.1995246]
[1738232320454,0.36371243,105260.0,105250.0,0.1995246]
[1738232320841,0.63371243,105260.0,105250.0,0.1995246]
[1738232326350,0.60787243,105260.0,105250.0,0.1995246]
[1738232326551,0.63371243,105260.0,105250.0,0.1995246]
[1738232329650,0.63371243,105260.0,105250.0,0.5603246]
[1738232334266,0.36371243,105260.0,105250.0,0.5603246]
[1738232336348,0.79285186,105260.0,105250.0,0.0094736]
[1738232336553,0.79285186,105260.0,105250.0,0.190051]
[1738232336554,0.72451243,105260.0,105250.0,0.190051]
[1738232339451,0.36371243,105260.0,105250.0,0.190051]
[1738232350558,0.295373,105260.0,105250.0,0.550851]
[1738232351855,0.295373,105260.0,105250.0,0.61919043]
[1738232352058,0.015,105260.0,105250.0,0.61919043]
[1738232384690,0.0761,105260.0,105250.0,0.61919043]
[1738232393000,0.190051,105250.0,105240.0,0.59839224]
[1738232393207,0.550851,105250.0,105240.0,0.59839224]
[1738232393499,0.582251,105250.0,105240.0,0.59839224]
[1738232393706,0.582251,105250.0,105240.0,0.66673167]
[1738232394296,0.582251,105250.0,105240.0,0.66773167]
[1738232394496,0.583251,105250.0,105240.0,0.66873167]
[1738232395401,0.222451,105250.0,105240.0,0.6309901]
[1738232401098,0.0324,105250.0,105240.0,0.6309901]
[1738232403208,0.001,105250.0,105240.0,0.6309901]
[1738232403599,0.001,105250.0,105240.0,0.69932953]
[1738232403796,0.001,105250.0,105240.0,0.73202953]
[1738232407115,0.001,105250.0,105240.0,0.73202953]
[1738232408719,0.001,105250.0,105240.0,0.6636901]
[1738232421526,0.001,105250.0,105240.0,0.6636901]
[1738232432226,0.001,105250.0,105240.0,0.6963901]
[1738232436034,0.001,105250.0,105240.0,0.76472953]
[1738232436235,0.0751,105260.0,105250.0,0.190051]
[1738232436430,0.0751,105260.0,105250.0,0.61919043]
[1738232437839,0.015,105260.0,105250.0,0.61919043]
[1738232438036,0.015,105260.0,105250.0,0.65009043]
[1738232438235,0.015,105260.0,105250.0,0.67589043]
[1738232440331,0.0304426,105270.0,105260.0,0.190033]
[1738232440642,0.0001426,105270.0,105260.0,0.72041186]
[1738232441944,0.0051426,105270.0,105260.0,0.72041186]
[1738232445838,0.0051426,105270.0,105260.0,0.72977494]
[1738232451350,1e-08,105270.0,105260.0,0.72977494]
[1738232451653,0.00142524,105290.0,105280.0,0.189997]
[1738232451840,0.59535684,105300.0,105290.0,0.189979]
[1738232452044,0.59487684,105300.0,105290.0,0.61911843]
[1738232454145,0.95567684,105300.0,105290.0,0.25831843]
[1738232454347,0.003,105290.0,105280.0,0.61927103]
[1738232454651,0.0358,105290.0,105280.0,0.61927103]
[1738232454953,0.0988,105290.0,105280.0,0.61927103]
[1738232455142,0.0958,105290.0,105280.0,0.61927103]
[1738232455450,0.3658,105290.0,105280.0,0.61927103]
[1738232455851,0.0988,105290.0,105280.0,0.61927103]
[1738232457149,0.0998,105290.0,105280.0,0.61927103]
[1738232459051,0.0998,105290.0,105280.0,0.26807919]
[1738232460859,0.0998,105290.0,105280.0,0.62887919]
[1738232467967,0.16813943,105290.0,105280.0,0.56053976]
[1738232469967,0.19393943,105290.0,105280.0,0.56053976]
[1738232470870,0.1256,105290.0,105280.0,0.56053976]
[1738232471173,0.19393943,105290.0,105280.0,0.56053976]
[1738232471767,0.1256,105290.0,105280.0,0.56053976]
[1738232472166,0.19393943,105290.0,105280.0,0.56053976]
[1738232473173,0.1256,105290.0,105280.0,0.62887919]
[1738232476368,0.0998,105290.0,105280.0,0.62887919]
[1738232476569,0.1256,105290.0,105280.0,0.62887919]
[1738232477175,0.0998,105290.0,105280.0,0.62887919]
[1738232477370,0.1256,105290.0,105280.0,0.62887919]
[1738232478077,0.0607,105290.0,105280.0,0.62887919]
[1738232478281,0.0607,105290.0,105280.0,0.66157919]
[1738232479481,0.0349,105290.0,105280.0,0.66157919]
[1738232481774,0.0349,105290.0,105280.0,0.59323976]
[1738232482076,0.10323943,105290.0,105280.0,0.59323976]
[1738232482283,0.0349,105290.0,105280.0,0.59323976]
[1738232482677,0.0349,105290.0,105280.0,0.66157919]
[1738232499093,0.004,105290.0,105280.0,0.66157919]
[1738232499697,0.004,105290.0,105280.0,1.02237919]
[1738232500201,0.004,105290.0,105280.0,1.09071862]
[1738232510913,0.004,105290.0,105280.0,1.02237919]
[1738232514821,0.004,105290.0,105280.0,0.98967919]
[1738232515112,0.035,105290.0,105280.0,0.98967919]
[1738232518612,0.0664,105290.0,105280.0,0.98967919]
[1738232531713,0.035,105290.0,105280.0,0.98967919]
[1738232532114,0.035,105290.0,105280.0,1.05801862]
[1738232532314,0.004,105290.0,105280.0,1.09021862]
[1738232537521,0.004,105290.0,105280.0,1.18431805]
[1738232538027,0.0001426,105310.0,105280.0,0.99432905]
[1738232538225,0.0001426,105310.0,105300.0,1.04823986]
[1738232538730,0.0001426,105310.0,105300.0,1.08083986]
[1738232539817,0.0031426,105310.0,105300.0,1.08083986]
[1738232540641,0.0001426,105310.0,105300.0,1.08083986]
[1738232544723,0.0001426,105310.0,105300.0,1.0904224]
[1738232547825,0.0001426,105310.0,105300.0,1.1161824]
[1738232548336,0.0001426,105310.0,105300.0,1.18452183]
[1738232548532,0.0001426,105310.0,105300.0,1.1161824]
[1738232549432,0.0001426,105310.0,105300.0,1.0904224]
[1738232549739,0.0001426,105310.0,105300.0,1.1161824]
[1738232551127,0.0001426,105310.0,105300.0,1.18452183]
[1738232552936,0.0001426,105310.0,105300.0,1.1161824]
[1738232553327,0.0001426,105310.0,105300.0,1.18452183]
[1738232553535,0.0001426,105310.0,105300.0,1.0904224]
[1738232553833,0.0001426,105310.0,105300.0,1.1161824]
[1738232555739,0.0973,105330.0,105320.0,0.189925]
[1738232555939,0.0973,105330.0,105320.0,0.97986443]
[1738232557139,0.1053,105330.0,105320.0,0.98086443]
[1738232559133,0.008,105330.0,105320.0,1.04920386]
[1738232559639,0.0699,105330.0,105320.0,0.98086443]
[1738232560736,0.0699,105330.0,105320.0,0.99039421]
[1738232561934,0.1007,105330.0,105320.0,0.62959421]
[1738232562140,0.290607,105330.0,105320.0,0.62959421]
[1738232562439,0.1007,105330.0,105320.0,0.62959421]
[1738232562837,0.290607,105330.0,105320.0,0.62959421]
[1738232563440,0.35894643,105330.0,105320.0,0.56125478]
[1738232567541,0.316367,105330.0,105320.0,0.62959421]
[1738232568042,0.316367,105330.0,105320.0,0.56125478]
[1738232568838,0.38470643,105330.0,105320.0,0.56125478]
[1738232570745,0.38470643,105330.0,105320.0,0.62959421]
[1738232571049,0.316367,105330.0,105320.0,0.62959421]
[1738232574444,0.12642,105330.0,105320.0,0.62959421]
[1738232576445,0.1007,105330.0,105320.0,0.62959421]
[1738232580749,0.290607,105330.0,105320.0,0.56125478]
[1738232581052,0.290607,105330.0,105310.0,0.14826603]
[1738232581053,0.62389886,105330.0,105310.0,0.0001426]
[1738232581250,0.32660386,105320.0,105310.0,0.0001426]
[1738232581452,0.68740386,105320.0,105310.0,0.0001426]
[1738232581647,0.95740386,105320.0,105310.0,0.0001426]
[1738232582264,0.88906443,105320.0,105310.0,0.0011426]
[1738232582558,0.88906443,105320.0,105310.0,0.1910856]
[1738232582752,0.88906443,105320.0,105310.0,0.1900856]
[1738232582953,0.89206443,105320.0,105310.0,0.1900856]
[1738232583350,0.89306443,105320.0,105310.0,0.1900856]
[1738232584754,0.62306443,105320.0,105310.0,0.1900856]
[1738232588563,0.193925,105320.0,105310.0,0.25842503]
[1738232589457,0.219645,105320.0,105310.0,0.25842503]
[1738232589663,0.28798443,105320.0,105310.0,0.1900856]
[1738232591364,0.463925,105320.0,105310.0,0.25842503]
[1738232591557,0.219645,105320.0,105310.0,0.25842503]
[1738232593963,0.004,105320.0,105310.0,0.61922503]
[1738232594162,0.004,105320.0,105310.0,0.68756446]
[1738232594469,0.004,105320.0,105310.0,0.71986446]
[1738232595664,0.004,105320.0,105310.0,0.65152503]
[1738232598561,0.004,105320.0,105310.0,0.71986446]
[1738232599367,0.004,105320.0,105310.0,0.65152503]
[1738232604875,0.004,105320.0,105310.0,0.71986446]
[1738232605773,0.004,105320.0,105310.0,0.74558446]
[1738232618182,0.003,105320.0,105310.0,0.74558446]
[1738232618378,0.1900326,105340.0,105330.0,0.189907]
[1738232618577,0.1900326,105340.0,105330.0,0.61904643]
[1738232619484,0.1920326,105340.0,105330.0,0.61904643]
[1738232619984,0.1980326,105340.0,105330.0,0.62004643]
[1738232622586,0.0081426,105340.0,105330.0,0.62004643]
[1738232622985,0.0081426,105340.0,105330.0,0.98084643]
[1738232626192,0.0081426,105340.0,105330.0,0.99254816]
[1738232632595,0.0081426,105340.0,105330.0,0.92420873]
[1738232632596,0.26637103,105340.0,105330.0,0.92420873]
[1738232632895,0.29209103,105340.0,105330.0,0.92420873]
[1738232633200,0.29209103,105340.0,105330.0,0.99254816]
[1738232633387,0.2237516,105340.0,105330.0,0.99254816]
[1738232634798,0.0338626,105340.0,105330.0,0.99254816]
[1738232639090,0.5588316,105340.0,105330.0,0.27094816]
[1738232639291,0.189925,105320.0,105310.0,0.0001426]
[1738232639497,0.189925,105320.0,105310.0,0.01217657]
[1738232639498,0.64478443,105320.0,105310.0,0.01217657]
[1738232642691,0.61906443,105320.0,105310.0,0.01217657]
[1738232643494,1.04820386,105320.0,105310.0,0.01217657]
[1738232643699,0.047487,105310.0,105280.0,0.49426384]
[1738232643897,0.25831843,105290.0,105280.0,0.19140741]
[1738232644206,0.61911843,105290.0,105280.0,0.00142441]
[1738232644395,0.65191843,105290.0,105280.0,0.00142441]
[1738232644596,0.68321843,105290.0,105280.0,0.00142441]
[1738232644900,0.68321843,105290.0,105280.0,0.00442441]
[1738232645294,0.68421843,105290.0,105280.0,0.01142441]
[1738232646598,0.615879,105290.0,105280.0,0.01142441]
[1738232646800,0.616879,105290.0,105280.0,0.01]
[1738232653302,0.002,105290.0,105280.0,0.66482594]
[1738232653610,0.002,105290.0,105280.0,0.73042594]
[1738232659411,0.002,105290.0,105280.0,0.75614594]
[1738232663307,0.0001426,105300.0,105280.0,0.56614894]
[1738232663506,0.00142492,105320.0,105310.0,0.189943]
[1738232663713,0.00142492,105320.0,105310.0,0.65477194]
[1738232665717,0.00442492,105320.0,105310.0,0.65477194]
[1738232666210,0.00142492,105320.0,105310.0,0.65477194]
[1738232666617,0.00142492,105320.0,105310.0,0.65577194]
[1738232666810,0.00142492,105320.0,105310.0,0.551743]
[1738232667214,0.27142492,105320.0,105310.0,0.551743]
[1738232668222,0.27142492,105320.0,105310.0,0.65577194]
[1738232669013,0.46134992,105320.0,105310.0,0.190943]
[1738232669213,0.46134992,105320.0,105310.0,0.20308328]
[1738232669814,0.95189886,105320.0,105310.0,0.001]
[1738232671021,0.95189886,105320.0,105310.0,0.190943]
[1738232672420,0.95189886,105320.0,105310.0,0.001]
[1738232674423,0.95047394,105320.0,105310.0,0.001]
[1738232675824,0.846445,105320.0,105310.0,0.190943]
[1738232676013,0.189925,105320.0,105310.0,0.190943]
[1738232676216,0.215605,105320.0,105310.0,0.190943]
[1738232676426,0.576405,105320.0,105310.0,0.190943]
[1738232676627,0.215605,105320.0,105310.0,0.190943]
[1738232679212,0.215605,105320.0,105310.0,0.551743]
[1738232679417,0.215605,105320.0,105310.0,0.65577194]
[1738232679618,0.189925,105320.0,105310.0,0.29497194]
[1738232679821,0.215605,105320.0,105310.0,0.29497194]
[1738232680226,0.215605,105320.0,105310.0,0.190943]
[1738232680428,0.215605,105320.0,105310.0,0.20983893]
[1738232680728,0.215605,105320.0,105310.0,0.31386787]
[1738232681225,0.215605,105320.0,105310.0,0.20983893]
[1738232690130,0.189925,105320.0,105310.0,0.20983893]
[1738232690330,0.215605,105320.0,105310.0,0.20983893]
[1738232692032,0.485605,105320.0,105310.0,0.20983893]
[1738232700839,0.846405,105320.0,105310.0,0.20983893]
[1738232702639,0.91463301,105320.0,105310.0,0.20983893]
[1738232702837,0.64463301,105320.0,105310.0,0.20983893]
[1738232704340,0.91463301,105320.0,105310.0,0.20983893]
[1738232708437,0.64463301,105320.0,105310.0,0.20983893]
[1738232713649,0.576405,105320.0,105310.0,0.20983893]
[1738232714347,0.64463301,105320.0,105310.0,0.20983893]
[1738232714543,0.215605,105320.0,105310.0,0.27806694]
[1738232714850,0.215605,105320.0,105310.0,0.20983893]
[1738232715533,0.189925,105320.0,105310.0,0.20983893]
[1738232715740,0.215605,105320.0,105310.0,0.27806694]
[1738232715940,0.215605,105320.0,105310.0,0.20983893]
[1738232716148,0.215605,105320.0,105310.0,0.27806694]
[1738232716744,0.215605,105320.0,105310.0,0.20983893]
[1738232717146,0.215605,105320.0,105310.0,0.21124932]
[1738232719647,0.28383301,105320.0,105310.0,0.21124932]
[1738232719842,0.64463301,105320.0,105310.0,0.21124932]
[1738232721247,0.28383301,105320.0,105310.0,0.21124932]
[1738232721449,0.64463301,105320.0,105310.0,0.21124932]
[1738232723956,0.91463301,105320.0,105310.0,0.21124932]
[1738232724554,0.846405,105320.0,105310.0,0.21124932]
[1738232725056,0.485605,105320.0,105310.0,0.21124932]
[1738232726662,0.55383301,105320.0,105310.0,0.21124932]
[1738232727251,0.91463301,105320.0,105310.0,0.21124932]
[1738232727758,0.98286102,105320.0,105310.0,0.21124932]
[1738232728351,0.62206102,105320.0,105310.0,0.21124932]
[1738232728659,0.55383301,105320.0,105310.0,0.21124932]
[1738232728860,0.52815301,105320.0,105310.0,0.21124932]
[1738232729050,0.55383301,105320.0,105310.0,0.21124932]
[1738232729863,0.28383301,105320.0,105310.0,0.21124932]
[1738232732752,0.25815301,105320.0,105310.0,0.21124932]
[1738232732960,0.28383301,105320.0,105310.0,0.21124932]
[1738232734266,0.25815301,105320.0,105310.0,0.21124932]
[1738232738273,0.25815301,105320.0,105310.0,0.57204932]
[1738232741573,0.189925,105320.0,105310.0,0.57204932]
[1738232766073,0.7205176,105330.0,105320.0,0.189925]
[1738232767079,0.6730406,105330.0,105320.0,0.19133539]
[1738232767285,0.6740406,105330.0,105320.0,0.19133539]
[1738232768688,0.6740406,105330.0,105320.0,0.19233539]
[1738232769089,0.2875606,105330.0,105320.0,0.19233539]
[1738232769287,0.3132406,105330.0,105320.0,0.19233539]
[1738232769586,0.3132406,105330.0,105320.0,0.55313539]
[1738232771588,0.3132006,105330.0,105320.0,0.55313539]
[1738232771784,0.2549606,105330.0,105320.0,0.55313539]
[1738232771984,0.2806006,105330.0,105320.0,0.55313539]
[1738232772189,0.2806006,105330.0,105320.0,0.58573539]
[1738232772791,0.57511907,105330.0,105320.0,0.58573539]
[1738232775694,0.50536194,105330.0,105320.0,0.58573539]
[1738232776199,0.31544394,105330.0,105320.0,0.58573539]
[1738232788315,0.28474394,105330.0,105320.0,0.58573539]
[1738232789611,0.28574394,105330.0,105320.0,0.59173539]
[1738232789810,0.28474394,105330.0,105320.0,0.59473539]
[1738232790111,0.28374394,105330.0,105320.0,0.58773539]
[1738232790312,0.28474394,105330.0,105320.0,0.59573539]
[1738232790510,0.28474394,105330.0,105320.0,0.59673539]
[1738232797721,0.0011426,105330.0,105320.0,0.59673539]
[1738232799724,0.0011426,105330.0,105320.0,0.58973539]
[1738232799913,0.0021426,105330.0,105320.0,0.62437539]
[1738232821950,0.0021426,105330.0,105320.0,0.59873539]
[1738232822151,0.0021426,105330.0,105320.0,0.62437539]
[1738232823643,0.0021426,105330.0,105320.0,0.59873539]
[1738232824050,0.0021426,105330.0,105320.0,0.56613539]
[1738232824258,0.0972426,105330.0,105320.0,0.56613539]
[1738232842960,0.57945076,105330.0,105320.0,0.56613539]
[1738232848870,0.35251756,105330.0,105320.0,0.56613539]
[1738232850167,0.54242456,105330.0,105320.0,0.56613539]
[1738232872781,0.56802456,105330.0,105320.0,0.56613539]
[1738232874577,0.54242456,105330.0,105320.0,0.56613539]
[1738232882791,0.2871496,105330.0,105320.0,0.56613539]
[1738232896211,0.51426086,105330.0,105320.0,0.56613539]
[1738232899312,0.48416086,105330.0,105320.0,0.56613539]
[1738232899609,0.48416086,105330.0,105320.0,0.59673539]
[1738232900314,0.45156086,105330.0,105320.0,0.59673539]
[1738232901412,0.22925386,105330.0,105320.0,0.59673539]
[1738232903902,0.0021426,105330.0,105320.0,0.59673539]
[1738232922318,0.0021426,105330.0,105320.0,0.56613539]
[1738232922521,0.0333426,105330.0,105320.0,0.56613539]
[1738232923319,0.0637426,105330.0,105320.0,0.56613539]
[1738232936222,0.0333426,105330.0,105320.0,0.56613539]
[1738232946242,0.0021426,105330.0,105320.0,0.56613539]
[1738232975375,0.0021426,105330.0,105320.0,0.56613539]
[1738233004598,0.0021426,105330.0,105320.0,0.59623539]
[1738233005786,0.10164969,105350.0,105340.0,0.189889]
[1738233005989,0.0508802,105350.0,105340.0,0.550689]
[1738233006297,0.0508802,105350.0,105340.0,0.55209939]
[1738233007191,0.0508802,105350.0,105340.0,0.55409939]
[1738233007387,0.33734601,105360.0,105340.0,0.36421039]
[1738233007690,0.33734601,105360.0,105350.0,0.189871]
[1738233008091,0.33734601,105360.0,105350.0,0.550671]
[1738233008290,0.33734601,105360.0,105350.0,0.55208139]
[1738233008691,0.30564601,105360.0,105350.0,0.55208139]
[1738233008896,0.25541756,105360.0,105350.0,0.57864139]
[1738233009191,0.25541756,105360.0,105350.0,0.64384139]
[1738233010394,0.25541756,105360.0,105350.0,0.64484139]
[1738233011796,0.0001426,105360.0,105350.0,0.64484139]
[1738233014492,0.0001426,105360.0,105350.0,0.65526064]
[1738233020405,0.0001426,105360.0,105350.0,0.65522064]
[1738233023601,0.0001426,105360.0,105350.0,0.62970064]
[1738233023807,0.0001426,105360.0,105350.0,0.65522064]
[1738233025299,0.00142412,105370.0,105360.0,0.189853]
[1738233025602,0.0621,105380.0,105360.0,0.3915]
[1738233025905,0.0621,105380.0,105370.0,0.550635]
[1738233026300,0.0621,105380.0,105370.0,0.55204539]
[1738233027304,0.0671,105380.0,105370.0,0.55204539]
[1738233027808,0.0671,105380.0,105370.0,0.57576539]
[1738233028008,0.0671,105380.0,105370.0,0.02513039]
[1738233028306,0.618717,105380.0,105370.0,0.02513039]
[1738233030216,0.257917,105380.0,105370.0,0.21496539]
[1738233030412,0.81672041,105380.0,105370.0,0.21496539]
[1738233030710,0.45592041,105380.0,105370.0,0.21496539]
[1738233031508,0.81672041,105380.0,105370.0,0.21496539]
[1738233031910,0.81672041,105380.0,105370.0,0.22517071]
[1738233035317,0.45592041,105380.0,105370.0,0.58597071]
[1738233037104,0.26610341,105380.0,105370.0,0.58597071]
[1738233037501,0.0681,105380.0,105370.0,0.58597071]
[1738233039107,0.038,105380.0,105370.0,0.58597071]
[1738233039710,0.038,105380.0,105370.0,0.61687071]
[1738233043517,0.52007232,105380.0,105370.0,0.61687071]
[1738233043711,0.52007232,105380.0,105370.0,0.58597071]
[1738233043914,0.51707232,105380.0,105370.0,0.58597071]
[1738233044910,0.51607232,105380.0,105370.0,0.58597071]
[1738233046516,0.034,105380.0,105370.0,0.58597071]
[1738233049618,0.034,105380.0,105370.0,0.65409909]
[1738233051615,0.002,105380.0,105370.0,0.65409909]
[1738233052823,0.0329,105380.0,105370.0,0.65409909]
[1738233058227,0.0329,105380.0,105370.0,0.68549909]
[1738233058442,0.0329,105380.0,105370.0,0.75362747]
[1738233058443,0.002,105380.0,105370.0,0.75362747]
[1738233064449,0.002,105380.0,105370.0,0.71101909]
[1738233064644,0.002,105380.0,105370.0,0.71201909]
[1738233065546,0.38407232,105390.0,105370.0,0.68649909]
[1738233065746,0.50574694,105390.0,105380.0,0.25794538]
[1738233066349,0.50574694,105390.0,105380.0,0.06953877]
[1738233066744,0.50774694,105390.0,105380.0,0.06953877]
[1738233067144,0.50774694,105390.0,105380.0,0.09325877]
[1738233067345,0.50774694,105390.0,105380.0,0.28307577]
[1738233069151,0.53326694,105390.0,105380.0,0.28307577]
[1738233070048,0.53326694,105390.0,105380.0,0.21494739]
[1738233070049,0.96219532,105390.0,105380.0,0.21494739]
[1738233072758,0.96379104,105390.0,105380.0,0.28307577]
[1738233073257,0.57747104,105390.0,105380.0,0.64387577]
[1738233073454,0.38766804,105390.0,105380.0,0.71200415]
[1738233074361,0.38766804,105390.0,105380.0,0.28307577]
[1738233074552,0.57746704,105390.0,105380.0,0.28307577]
[1738233075858,0.57746704,105390.0,105380.0,0.71200415]
[1738233076057,0.57746704,105390.0,105380.0,0.35120415]
[1738233076258,0.57746704,105390.0,105380.0,0.71200415]
[1738233076458,0.57746704,105390.0,105380.0,0.64387577]
[1738233076662,0.50774294,105390.0,105380.0,0.71200415]
[1738233078956,0.50774294,105390.0,105380.0,0.35120415]
[1738233079364,0.50774294,105390.0,105380.0,0.71200415]
[1738233080365,0.50774294,105390.0,105380.0,0.64387577]
[1738233080863,0.50774294,105390.0,105380.0,0.71200415]
[1738233084651,0.73492956,105390.0,105380.0,0.64387577]
[1738233088070,0.45132822,105390.0,105380.0,0.64387577]
[1738233090567,0.45132822,105390.0,105380.0,0.71200415]
[1738233090776,0.45132822,105390.0,105380.0,0.64387577]
[1738233091568,0.45132822,105390.0,105380.0,0.71200415]
[1738233094772,0.45132822,105390.0,105380.0,0.64387577]
[1738233095670,0.45132822,105390.0,105380.0,0.57574739]
[1738233095974,0.81212822,105390.0,105380.0,0.28307577]
[1738233098277,0.8802566,105390.0,105380.0,0.21494739]
[1738233100177,0.8802566,105390.0,105380.0,0.02513039]
[1738233100771,0.8782566,105390.0,105380.0,0.02613039]
[1738233101169,0.8782566,105390.0,105380.0,0.02713039]
[1738233101673,0.94638498,105390.0,105380.0,0.02713039]
[1738233101874,0.189817,105380.0,105370.0,0.01020532]
[1738233102176,0.189835,105370.0,105360.0,0.25811598]
[1738233102378,0.220035,105370.0,105360.0,0.25811598]
[1738233103080,0.220035,105370.0,105360.0,0.28183598]
[1738233103379,0.221035,105370.0,105360.0,0.28883598]
[1738233104276,0.221035,105370.0,105360.0,0.29888281]
[1738233105079,0.221035,105370.0,105360.0,0.30188281]
[1738233106180,0.221035,105370.0,105360.0,0.37001119]
[1738233106581,0.221035,105370.0,105360.0,0.30188281]
[1738233107478,0.50181638,105370.0,105360.0,0.30188281]
[1738233115177,0.70021844,105370.0,105360.0,0.30188281]
[1738233118895,0.67001844,105370.0,105360.0,0.30188281]
[1738233130591,0.67001844,105370.0,105360.0,0.37001119]
[1738233130790,0.64453844,105370.0,105360.0,0.37001119]
[1738233131093,0.64453844,105370.0,105360.0,0.40161119]
[1738233131692,0.44613638,105370.0,105360.0,0.40161119]
[1738233131894,0.44613638,105370.0,105360.0,0.33348281]
[1738233134488,0.67337183,105370.0,105360.0,0.33348281]
[1738233137188,0.67337183,105370.0,105360.0,0.26817953]
[1738233137586,0.67337183,105370.0,105360.0,0.33630791]
[1738233137990,0.64496829,105370.0,105360.0,0.33630791]
[1738233141888,0.38966691,105370.0,105360.0,0.33630791]
[1738233143195,0.19983191,105370.0,105360.0,0.69710791]
[1738233145295,0.25630138,105370.0,105360.0,0.69710791]
[1738233151406,0.25530138,105370.0,105360.0,0.69010791]
[1738233151607,0.25630138,105370.0,105360.0,0.69910791]
[1738233152006,0.25630138,105370.0,105360.0,0.70010791]
[1738233156916,0.001,105370.0,105360.0,0.70010791]
[1738233160615,0.001,105370.0,105360.0,0.60037953]
[1738233161414,0.001,105370.0,105360.0,0.66850791]
[1738233162116,0.001,105370.0,105360.0,0.23957953]
[1738233162311,0.190835,105370.0,105360.0,0.60037953]
[1738233178739,0.61691313,105370.0,105360.0,0.60037953]
[1738233184938,1.04584151,105370.0,105360.0,0.04676683]
[1738233186448,1.04584151,105370.0,105360.0,0.01204884]
[1738233186946,1.04584151,105370.0,105360.0,0.0218301]
[1738233187552,1.04584151,105370.0,105360.0,0.0238101]
[1738233187943,1.11557212,105370.0,105360.0,0.0238101]
[1738233188347,0.189853,105360.0,105350.0,0.0001426]
[1738233188549,0.189871,105350.0,105340.0,0.25800938]
[1738233188744,0.61879938,105350.0,105340.0,0.189881]
[1738233189245,0.61879938,105350.0,105340.0,0.00981764]
[1738233189444,0.189889,105340.0,105330.0,0.25182489]
[1738233189651,0.67479738,105340.0,105330.0,0.31995327]
[1738233189856,0.67479738,105340.0,105330.0,0.28955327]
[1738233190154,0.67479738,105340.0,105330.0,0.19132489]
[1738233190352,0.73669738,105340.0,105330.0,0.00142389]
[1738233190554,0.189907,105330.0,105320.0,0.25818898]
[1738233190853,0.61883538,105330.0,105320.0,0.25818898]
[1738233191246,0.550707,105330.0,105320.0,0.25818898]
[1738233191749,0.61883538,105330.0,105320.0,0.1900606]
[1738233191951,0.61983538,105330.0,105320.0,0.1910606]
[1738233192545,0.62083538,105330.0,105320.0,0.1970606]
[1738233192949,0.62083538,105330.0,105320.0,0.20690361]
[1738233193252,0.62083538,105330.0,105320.0,0.27503199]
[1738233193450,0.552707,105330.0,105320.0,0.34316037]
[1738233193655,0.217387,105330.0,105320.0,0.34316037]
[1738233193854,0.002,105330.0,105320.0,0.70396037]
[1738233196757,0.002,105330.0,105320.0,0.63583199]
[1738233198451,0.002,105330.0,105320.0,0.70396037]
[1738233200859,0.002,105330.0,105320.0,0.63583199]
[1738233202460,0.26003538,105330.0,105320.0,0.63583199]
[1738233202657,0.26003538,105330.0,105320.0,0.56770361]
[1738233203763,0.26003538,105330.0,105320.0,0.37778561]
[1738233203958,0.26003538,105330.0,105320.0,0.01698561]
[1738233204265,0.68896376,105330.0,105320.0,0.0071426]
[1738233204572,0.18995,105310.0,105300.0,0.189953]
[1738233204755,0.28355838,105310.0,105300.0,0.189953]
[1738233204956,0.31465838,105310.0,105300.0,0.189953]
[1738233205956,0.31565838,105310.0,105300.0,0.194953]
[1738233206362,0.31565838,105310.0,105300.0,0.26308138]
[1738233206564,0.24753,105310.0,105300.0,0.194953]
[1738233207266,0.24853,105310.0,105300.0,0.194953]
[1738233207653,0.24753,105310.0,105300.0,0.192953]
[1738233207861,0.24853,105310.0,105300.0,0.29693295]
[1738233208465,0.19195,105310.0,105300.0,0.29693295]
[1738233220980,0.002,105310.0,105300.0,0.29693295]
[1738233221166,0.002,105310.0,105300.0,0.65773295]
[1738233228469,0.002,105310.0,105300.0,0.7617129]
[1738233228675,0.002,105310.0,105300.0,0.69016676]
[1738233264100,0.002,105310.0,105300.0,0.86117058]
[1738233268807,0.002,105310.0,105300.0,0.92937746]
[1738233270409,0.0001426,105320.0,105310.0,0.189943]
[1738233270712,0.032,105330.0,105320.0,0.32633876]
[1738233270914,0.032,105330.0,105320.0,0.68713876]
[1738233273415,0.033,105330.0,105320.0,0.68713876]
[1738233273618,0.033,105330.0,105320.0,0.69113876]
[1738233274117,0.26031368,105330.0,105320.0,0.69113876]
[1738233275909,0.26031368,105330.0,105320.0,0.70675095]
[1738233276310,0.45022068,105330.0,105320.0,0.63854407]
[1738233276608,0.51842756,105330.0,105320.0,0.38041219]
[1738233276910,0.54390756,105330.0,105320.0,0.01961219]
[1738233277516,0.31659388,105330.0,105320.0,0.01961219]
[1738233277915,0.58659388,105330.0,105320.0,0.01961219]
[1738233278213,0.94739388,105330.0,105320.0,0.01961219]
[1738233278912,0.58659388,105330.0,105320.0,0.27774407]
[1738233280720,0.248387,105330.0,105320.0,0.27774407]
[1738233281822,0.31659388,105330.0,105320.0,0.20953719]
[1738233284824,0.29111388,105330.0,105320.0,0.20953719]
[1738233285026,0.31659388,105330.0,105320.0,0.20953719]